fUST/lending_fUST_20241003
["ID","MTS","AMOUNT","RATE_DAILY","PERIOD"]
[339746709,1727933439087,-500.0,0.00013698,2]
[339746710,1727933439096,-504.09854518,0.00013698,2]
[339746711,1727933439105,-289.72126606,0.00013698,2]
[339746712,1727933439114,-500.0,0.00013698,2]
[339746713,1727933439124,-500.0,0.00013698,2]
[339746714,1727933439134,-500.0,0.00013698,2]
[339746716,1727933439143,-503.80755531,0.00013698,2]
[339746718,1727933439152,-500.0,0.00013698,2]
[339746719,1727933439161,-500.0,0.00013698,2]
[339746720,1727933439171,-500.30618596,0.00013698,2]
[339746721,1727933439181,-500.0,0.00013698,2]
[339746722,1727933439191,-500.0,0.00013698,2]
[339746723,1727933439200,-711.03,0.00013698,2]
[339746725,1727933439210,-463.01194337,0.00013698,2]
[339746727,1727933439219,-497.46852618,0.00013698,2]
[339746728,1727933439229,-500.0,0.00013698,2]
[339746729,1727933439238,-500.0,0.00013698,2]
[339746730,1727933439247,-500.0,0.00013698,2]
[339746731,1727933439256,-617.72,0.00013698,2]
[339746732,1727933439265,-500.0,0.00013698,2]
[339746733,1727933439275,-605.25,0.00013698,2]
[339746734,1727933439284,-649.08330804,0.00013698,2]
[339746735,1727933439293,-500.0,0.00013698,2]
[339746736,1727933439308,-500.0,0.00013698,2]
[339746738,1727933439318,-500.0,0.00013698,2]
[339746740,1727933439327,-280.83754985,0.00013698,2]
[339746743,1727933439336,-500.0,0.00013698,2]
[339746745,1727933439345,-500.0,0.00013698,2]
[339746747,1727933439355,-500.0,0.00013698,2]
[339746748,1727933439364,-329.10592182,0.00013698,2]
[339746749,1727933439374,-500.0,0.00013698,2]
[339746750,1727933439385,-500.21902844,0.00013698,2]
[339746752,1727933439395,-502.3599434,0.00013698,2]
[339746753,1727933439404,-639.56,0.00013698,2]
[339746754,1727933439414,-500.0,0.00013698,2]
[339746755,1727933439423,-500.0,0.00013698,2]
[339746756,1727933439433,-502.95547008,0.00013698,2]
[339746757,1727933439442,-705.45,0.00013698,2]
[339746758,1727933439451,-515.16611628,0.00013698,2]
[339746759,1727933439460,-500.0,0.00013698,2]
[339746760,1727933439472,-512.53530142,0.00013698,2]
[339746761,1727933439481,-500.0,0.00013698,2]
[339746762,1727933439491,-500.0,0.00013698,2]
[339746763,1727933439500,-503.15850656,0.00013698,2]
[339746764,1727933439509,-523.01,0.00013698,2]
[339746765,1727933439519,-500.0,0.00013698,2]
[339746766,1727933439528,-500.30491868,0.00013698,2]
[339746767,1727933439539,-500.0,0.00013698,2]
[339746768,1727933439551,-661.76,0.00013698,2]
[339746769,1727933439560,-151.0,0.00013698,2]
[339746771,1727933439569,-500.0,0.00013698,2]
[339746772,1727933439578,-183.344915,0.00013698,2]
[339746773,1727933439586,-500.0,0.00013698,2]
[339746774,1727933439595,-500.0,0.00013698,2]
[339746775,1727933439605,-500.0,0.00013698,2]
[339746776,1727933439614,-500.0,0.00013698,2]
[339746777,1727933439625,-500.0,0.00013698,2]
[339746778,1727933439635,-1111.32,0.00013698,2]
[339746779,1727933439645,-500.0,0.00013698,2]
[339746780,1727933439655,-500.0,0.00013698,2]
[339746781,1727933439665,-500.0,0.00013698,2]
[339746782,1727933439674,-500.0,0.00013698,2]
[339746783,1727933439683,-500.0,0.00013698,2]
[339746784,1727933439693,-500.0,0.00013698,2]
[339746785,1727933439702,-1645.93,0.00013698,2]
[339746786,1727933439711,-500.0,0.00013698,2]
[339746787,1727933439720,-500.0,0.00013698,2]
[339746788,1727933439730,-500.0,0.00013698,2]
[339746789,1727933439740,-500.0,0.00013698,2]
[339746790,1727933439750,-500.0,0.00013698,2]
[339746791,1727933439760,-500.0,0.00013698,2]
[339746792,1727933439769,-500.0,0.00013698,2]
[339746793,1727933439779,-500.0,0.00013698,2]
[339746794,1727933439789,-500.0,0.00013698,2]
[339746795,1727933439799,-500.0,0.00013698,2]
[339746796,1727933439808,-500.0,0.00013698,2]
[339746797,1727933439817,-500.0,0.00013698,2]
[339746798,1727933439825,-500.0,0.00013698,2]
[339746799,1727933439835,-500.0,0.00013698,2]
[339746800,1727933439845,-500.0,0.00013698,2]
[339746801,1727933439854,-209.70004508,0.00013698,2]
[339746802,1727933439863,-780.65,0.00013698,2]
[339746803,1727933439872,-500.0,0.00013698,2]
[339746804,1727933439882,-500.0,0.00013698,2]
[339746805,1727933439894,-500.0,0.00013698,2]
[339746806,1727933439905,-500.0,0.00013698,2]
[339746807,1727933439915,-543.65,0.00013698,2]
[339746808,1727933439926,-500.0,0.00013698,2]
[339746809,1727933439935,-500.0,0.00013698,2]
[339746810,1727933439945,-500.0,0.00013698,2]
[339746811,1727933439956,-500.0,0.00013698,2]
[339746812,1727933439968,-500.0,0.00013698,2]
[339746813,1727933439977,-502.27386152,0.00013698,2]
[339746814,1727933439986,-500.0,0.00013698,2]
[339746815,1727933439995,-500.0,0.00013698,2]
[339746816,1727933440005,-500.0,0.00013698,2]
[339746817,1727933440014,-500.0,0.00013698,2]
[339746818,1727933440024,-500.0,0.00013698,2]
[339746819,1727933440033,-1639.7,0.00013698,2]
[339746820,1727933440044,-500.0,0.00013698,2]
[339746821,1727933440055,-500.0,0.00013698,2]
[339746822,1727933440064,-500.0,0.00013698,2]
[339746823,1727933440073,-500.0,0.00013698,2]
[339746824,1727933440082,-500.0,0.00013698,2]
[339746825,1727933440092,-500.0,0.00013698,2]
[339746826,1727933440101,-503.01502235,0.00013698,2]
[339746827,1727933440111,-500.0,0.00013698,2]
[339746828,1727933440120,-500.0,0.00013698,2]
[339746829,1727933440131,-500.0,0.00013698,2]
[339746830,1727933440141,-512.41999985,0.00013698,2]
[339746831,1727933440151,-505.9487305,0.00013698,2]
[339746832,1727933440160,-651.78,0.00013698,2]
[339746833,1727933440169,-639.21,0.00013698,2]
[339746834,1727933440179,-500.0,0.00013698,2]
[339746835,1727933440189,-500.0,0.00013698,2]
[339746836,1727933440198,-500.0,0.00013698,2]
[339746837,1727933440208,-500.0,0.00013698,2]
[339746838,1727933440217,-500.0,0.00013698,2]
[339746839,1727933440227,-1271.93,0.00013698,2]
[339746840,1727933440237,-500.0,0.00013698,2]
[339746841,1727933440246,-503.04983835,0.00013698,2]
[339746842,1727933440256,-500.0,0.00013698,2]
[339746843,1727933440265,-503.55244473,0.00013698,2]
[339746844,1727933440275,-1112.07,0.00013698,2]
[339746845,1727933440284,-500.0,0.00013698,2]
[339746846,1727933440294,-500.0,0.00013698,2]
[339746847,1727933440309,-500.0,0.00013698,2]
[339746848,1727933440319,-368.10734184,0.00013698,2]
[339746849,1727933440484,-131.89265816,0.00013698,2]
[339746850,1727933440494,-500.0,0.00013698,2]
[339746851,1727933440504,-199.59844037,0.00013698,2]
[339746872,1727933470891,500.0,0.00012124,2]
[339746873,1727933497393,184.0,0.000209,120]
[339746880,1727934333160,-300.0,0.00012224,2]
[339746881,1727934333184,-300.0,0.00012224,2]
[339746882,1727934333208,-157.28335231,0.00012225,2]
[339746883,1727934357103,-2129.24370004,0.00012225,2]
[339746886,1727934547313,-474.45248481,0.00012143,2]
[339746887,1727934547337,-300.0,0.00012173,2]
[339746888,1727934547360,-300.0,0.00012173,2]
[339746889,1727934547382,-646.99459436,0.00012174,2]
[339746890,1727934547433,-21966.47835334,0.00012174,2]
[339746891,1727934547461,-166.552667,0.00012243,2]
[339746892,1727934547487,-166.552667,0.00012323,2]
[339746893,1727934547509,-166.552667,0.00012402,2]
[339746894,1727934547533,-166.552667,0.00012482,2]
[339746895,1727934547556,-3426.67053271,0.00012503,2]
[339746896,1727934547580,-166.552667,0.00012562,2]
[339746897,1727934565395,171.0,0.000209,120]
[339746911,1727934631867,-497.565324,0.00012603,2]
[339746912,1727934631878,-166.552667,0.00012642,2]
[339746913,1727934631888,-166.552667,0.00012721,2]
[339746914,1727934631898,-573.17674701,0.0001273,2]
[339746915,1727934631908,-166.552667,0.00012801,2]
[339746916,1727934631917,-166.552667,0.00012881,2]
[339746917,1727934631926,-186.536699,0.00013,2]
[339746918,1727934631935,-150.112233,0.000131,2]
[339746919,1727934631945,-153.0,0.00013152,2]
[339746920,1727934631955,-150.112233,0.000132,2]
[339746921,1727934631964,-150.112233,0.000134,2]
[339746922,1727934631973,-168.0,0.0001342,2]
[339746923,1727934631983,-150.112233,0.000135,2]
[339746924,1727934631992,-201.74076337,0.0001355,2]
[339746925,1727934632001,-180.32905625,0.00013588,2]
[339746926,1727934632311,-453.73634617,0.00013588,2]
[339746927,1727934632321,-1000.0,0.00013588,2]
[339746928,1727934632332,-150.112233,0.000136,2]
[339746929,1727934632342,-300.0,0.00013601,2]
[339746930,1727934632352,-150.0,0.00013635,2]
[339746931,1727934632361,-32.01797871,0.00013673,2]
[339746932,1727934632373,-467.98202129,0.00013673,2]
[339746933,1727934632383,-232.93657217,0.00013673,2]
[339746934,1727934632403,-267.06342783,0.00013673,2]
[339746935,1727934632413,-500.0,0.00013673,2]
[339746936,1727934632422,-500.0,0.00013673,2]
[339746937,1727934632431,-500.0,0.00013673,2]
[339746938,1727934632441,-292.90774073,0.00013678,2]
[339746939,1727934632450,-115.16392099,0.00013678,2]
[339746940,1727934632461,-505.80497893,0.00013678,2]
[339746956,1727934637964,-500.0,0.00013673,2]
[339746958,1727934637974,-59727.19777778,0.00013678,2]
[339746959,1727934637984,-23837.5020216,0.00013678,2]
[339746960,1727934637993,-12069.6333355,0.00013688,2]
[339746961,1727934638003,-4767.50040433,0.00013688,2]
[339746962,1727934638012,-55243.1674258,0.00013688,2]
[339746963,1727934638025,-53383.5325942,0.00013688,2]
[339746964,1727934638034,-42907.503639,0.00013688,2]
[339746965,1727934638047,-12069.6333355,0.00013689,2]
[339746966,1727934638056,-4767.50040433,0.00013689,2]
[339746967,1727934638066,-177.533,0.00013689,2]
[339746968,1727934638075,-150.0,0.00013692,2]
[339746969,1727934638084,-6027.56634138,0.00013696,2]
[339746970,1727934638095,-150.01,0.00013697,2]
[339746971,1727934638104,-1875.85866984,0.00013697,2]
[339746972,1727934638114,-8422.00035632,0.00013698,2]
[339746973,1727934638124,-5786.03313117,0.00013698,2]
[339746974,1727934638134,-454.61935707,0.00013698,2]
[339746975,1727934638143,-500.0,0.00013698,2]
[339746976,1727934638152,-502.95547008,0.00013698,2]
[339746977,1727934638162,-222.25882528,0.00013698,2]
[339746978,1727934638172,-501.17746495,0.00013698,2]
[339746980,1727934638182,-502.39958623,0.00013698,2]
[339746981,1727934638191,-500.0,0.00013698,2]
[339746982,1727934638201,-502.27386152,0.00013698,2]
[339746983,1727934638211,-500.0,0.00013698,2]
[339746984,1727934638221,-500.0,0.00013698,2]
[339746985,1727934638232,-500.0,0.00013698,2]
[339746986,1727934638241,-500.0,0.00013698,2]
[339746987,1727934638251,-500.0,0.00013698,2]
[339746988,1727934638260,-500.0,0.00013698,2]
[339746989,1727934638269,-500.0,0.00013698,2]
[339746990,1727934638282,-503.01502235,0.00013698,2]
[339746991,1727934638292,-500.0,0.00013698,2]
[339746992,1727934638302,-500.0,0.00013698,2]
[339746993,1727934638311,-556.12372419,0.00013698,2]
[339746994,1727934638321,-512.41999985,0.00013698,2]
[339746995,1727934638330,-505.9487305,0.00013698,2]
[339746996,1727934638340,-500.0,0.00013698,2]
[339746997,1727934638349,-517.72,0.00013698,2]
[339746998,1727934638359,-500.0,0.00013698,2]
[339746999,1727934638368,-500.0,0.00013698,2]
[339747000,1727934638378,-500.0,0.00013698,2]
[339747001,1727934638387,-2644.88,0.00013698,2]
[339747002,1727934638397,-500.0,0.00013698,2]
[339747003,1727934638406,-500.0,0.00013698,2]
[339747004,1727934638415,-500.0,0.00013698,2]
[339747005,1727934638425,-602.94,0.00013698,2]
[339747006,1727934638434,-500.0,0.00013698,2]
[339747007,1727934638443,-503.14300435,0.00013698,2]
[339747008,1727934638452,-500.0,0.00013698,2]
[339747009,1727934638461,-503.04983835,0.00013698,2]
[339747010,1727934638470,-503.55244473,0.00013698,2]
[339747011,1727934638480,-500.0,0.00013698,2]
[339747012,1727934638489,-500.0,0.00013698,2]
[339747013,1727934638499,-501.87325652,0.00013698,2]
[339747014,1727934638508,-500.0,0.00013698,2]
[339747015,1727934638518,-500.0,0.00013698,2]
[339747016,1727934638527,-553.46198688,0.00013698,2]
[339747017,1727934638536,-500.0,0.00013698,2]
[339747018,1727934638545,-500.0,0.00013698,2]
[339747019,1727934638556,-500.0,0.00013698,2]
[339747020,1727934638565,-500.0,0.00013698,2]
[339747021,1727934638575,-500.44387226,0.00013698,2]
[339747022,1727934638585,-500.0,0.00013698,2]
[339747023,1727934638596,-500.0,0.00013698,2]
[339747024,1727934638605,-500.0,0.00013698,2]
[339747025,1727934638615,-500.0,0.00013698,2]
[339747026,1727934638626,-500.0,0.00013698,2]
[339747027,1727934638636,-500.0,0.00013698,2]
[339747028,1727934638646,-500.0,0.00013698,2]
[339747029,1727934638655,-503.44326185,0.00013698,2]
[339747030,1727934638665,-500.0,0.00013698,2]
[339747031,1727934638674,-500.55936233,0.00013698,2]
[339747032,1727934638684,-500.35684235,0.00013698,2]
[339747033,1727934638694,-500.0,0.00013698,2]
[339747034,1727934638704,-631.28,0.00013698,2]
[339747035,1727934638714,-562.54574659,0.00013698,2]
[339747036,1727934638724,-188.64431193,0.00013698,2]
[339747037,1727934638734,-502.78392385,0.00013698,2]
[339747038,1727934638745,-616.36,0.00013698,2]
[339747039,1727934638754,-500.0,0.00013698,2]
[339747040,1727934638764,-500.0,0.00013698,2]
[339747041,1727934638773,-500.0,0.00013698,2]
[339747042,1727934638783,-500.0,0.00013698,2]
[339747043,1727934638793,-780.8,0.00013698,2]
[339747044,1727934638802,-500.0,0.00013698,2]
[339747045,1727934638812,-502.51873963,0.00013698,2]
[339747046,1727934638821,-500.0,0.00013698,2]
[339747047,1727934638830,-657.37,0.00013698,2]
[339747048,1727934638840,-500.0,0.00013698,2]
[339747049,1727934638850,-500.0,0.00013698,2]
[339747050,1727934638859,-500.0,0.00013698,2]
[339747051,1727934638870,-500.0,0.00013698,2]
[339747052,1727934638880,-500.0,0.00013698,2]
[339747053,1727934638889,-500.0,0.00013698,2]
[339747054,1727934638898,-230.45779496,0.00013698,2]
[339747055,1727934638908,-500.0,0.00013698,2]
[339747056,1727934638918,-544.4,0.00013698,2]
[339747057,1727934638927,-500.0,0.00013698,2]
[339747058,1727934638938,-500.0,0.00013698,2]
[339747059,1727934638947,-500.0,0.00013698,2]
[339747060,1727934638956,-501.00887923,0.00013698,2]
[339747061,1727934638966,-500.0,0.00013698,2]
[339747062,1727934638974,-500.0,0.00013698,2]
[339747063,1727934638984,-151.0,0.00013698,2]
[339747064,1727934638993,-156.63543391,0.00013698,2]
[339747065,1727934639003,-500.0,0.00013698,2]
[339747066,1727934639012,-500.0,0.00013698,2]
[339747067,1727934639022,-500.0,0.00013698,2]
[339747068,1727934639031,-500.0,0.00013698,2]
[339747069,1727934639041,-500.0,0.00013698,2]
[339747070,1727934639051,-500.0,0.00013698,2]
[339747071,1727934639062,-500.0,0.00013698,2]
[339747072,1727934639072,-500.0,0.00013698,2]
[339747073,1727934639081,-500.0,0.00013698,2]
[339747074,1727934639091,-329.10592182,0.00013698,2]
[339747075,1727934639100,-500.0,0.00013698,2]
[339747076,1727934639109,-760.87,0.00013698,2]
[339747077,1727934639118,-500.0,0.00013698,2]
[339747078,1727934639127,-500.0,0.00013698,2]
[339747079,1727934639139,-500.74461163,0.00013698,2]
[339747080,1727934639149,-500.0,0.00013698,2]
[339747081,1727934639158,-663.24,0.00013698,2]
[339747082,1727934639167,-500.0,0.00013698,2]
[339747083,1727934639176,-500.98987744,0.00013698,2]
[339747084,1727934639195,-151.0,0.00013698,2]
[339747085,1727934639206,-586.89498287,0.00013698,2]
[339747086,1727934639216,-500.0,0.00013698,2]
[339747087,1727934639225,-500.0,0.00013698,2]
[339747088,1727934639235,-500.0,0.00013698,2]
[339747089,1727934639245,-500.0,0.00013698,2]
[339747090,1727934639255,-1000.0,0.00013698,2]
[339747091,1727934639264,-500.0,0.00013698,2]
[339747092,1727934639274,-500.0,0.00013698,2]
[339747093,1727934639283,-500.0,0.00013698,2]
[339747095,1727934639293,-693.25,0.00013698,2]
[339747097,1727934639303,-500.0,0.00013698,2]
[339747099,1727934639313,-500.0,0.00013698,2]
[339747100,1727934639322,-500.0,0.00013698,2]
[339747101,1727934639331,-500.0,0.00013698,2]
[339747102,1727934639341,-507.51583152,0.00013698,2]
[339747103,1727934639351,-500.0,0.00013698,2]
[339747104,1727934639360,-500.0,0.00013698,2]
[339747105,1727934639370,-500.0,0.00013698,2]
[339747106,1727934639380,-510.15554747,0.00013698,2]
[339747107,1727934639390,-743.16,0.00013698,2]
[339747108,1727934639400,-500.0,0.00013698,2]
[339747109,1727934639409,-500.0,0.00013698,2]
[339747110,1727934639419,-500.0,0.00013698,2]
[339747111,1727934639429,-755.74,0.00013698,2]
[339747112,1727934639439,-500.0,0.00013698,2]
[339747113,1727934639448,-151.0,0.00013698,2]
[339747114,1727934639457,-151.0,0.00013698,2]
[339747116,1727934639467,-151.0,0.00013698,2]
[339747117,1727934639477,-500.0,0.00013698,2]
[339747118,1727934639487,-500.0,0.00013698,2]
[339747119,1727934639497,-284.97864196,0.00013698,2]
[339747120,1727934639506,-500.0,0.00013698,2]
[339747121,1727934639516,-500.0,0.00013698,2]
[339747123,1727934639526,-500.0,0.00013698,2]
[339747126,1727934639536,-500.0,0.00013698,2]
[339747127,1727934639547,-500.0,0.00013698,2]
[339747128,1727934639556,-500.0,0.00013698,2]
[339747129,1727934639566,-500.0,0.00013698,2]
[339747130,1727934639575,-500.0,0.00013698,2]
[339747131,1727934639585,-500.0,0.00013698,2]
[339747132,1727934639594,-919.14,0.00013698,2]
[339747133,1727934639604,-500.0,0.00013698,2]
[339747134,1727934639614,-539.09866923,0.00013698,2]
[339747135,1727934639623,-500.0,0.00013698,2]
[339747136,1727934639633,-151.0,0.00013698,2]
[339747137,1727934639643,-151.0,0.00013698,2]
[339747138,1727934639652,-151.0,0.00013698,2]
[339747139,1727934639662,-151.0,0.00013698,2]
[339747140,1727934639671,-151.0,0.00013698,2]
[339747141,1727934639681,-151.0,0.00013698,2]
[339747142,1727934639691,-1079.25,0.00013698,2]
[339747143,1727934639701,-500.0,0.00013698,2]
[339747144,1727934639953,-500.0,0.00013698,2]
[339747145,1727934639963,-500.0,0.00013698,2]
[339747146,1727934639974,-501.41258368,0.00013698,2]
[339747147,1727934639983,-541.98073947,0.00013698,2]
[339747148,1727934639993,-500.88851412,0.00013698,2]
[339747149,1727934640002,-501.14312859,0.00013698,2]
[339747150,1727934640011,-500.0,0.00013698,2]
[339747151,1727934640021,-500.0,0.00013698,2]
[339747152,1727934640030,-500.0,0.00013698,2]
[339747153,1727934640039,-2364.76,0.00013698,2]
[339747154,1727934640053,-500.0,0.00013698,2]
[339747155,1727934640064,-527.94478923,0.00013698,2]
[339747156,1727934640074,-500.0,0.00013698,2]
[339747158,1727934640083,-500.0,0.00013698,2]
[339747159,1727934640093,-500.0,0.00013698,2]
[339747160,1727934640103,-500.0,0.00013698,2]
[339747161,1727934640113,-500.0,0.00013698,2]
[339747162,1727934640123,-1029.34,0.00013698,2]
[339747163,1727934640132,-500.0,0.00013698,2]
[339747164,1727934640142,-500.0,0.00013698,2]
[339747165,1727934640151,-500.0,0.00013698,2]
[339747166,1727934640161,-500.24714373,0.00013698,2]
[339747167,1727934640170,-500.0,0.00013698,2]
[339747168,1727934640179,-500.0,0.00013698,2]
[339747169,1727934640188,-553.48,0.00013698,2]
[339747170,1727934640198,-500.0,0.00013698,2]
[339747171,1727934640207,-500.98266916,0.00013698,2]
[339747172,1727934640216,-612.2,0.00013698,2]
[339747173,1727934640226,-500.0,0.00013698,2]
[339747174,1727934640236,-500.0,0.00013698,2]
[339747175,1727934640247,-500.0,0.00013698,2]
[339747176,1727934640256,-500.0,0.00013698,2]
[339747177,1727934640266,-513.12063561,0.00013698,2]
[339747178,1727934640276,-539.54,0.00013698,2]
[339747179,1727934640287,-500.0,0.00013698,2]
[339747180,1727934640301,-514.09377697,0.00013698,2]
[339747181,1727934640312,-1112.07,0.00013698,2]
[339747182,1727934640330,-500.0,0.00013698,2]
[339747183,1727934640340,-505.24530188,0.00013698,2]
[339747184,1727934640350,-151.0,0.00013698,2]
[339747185,1727934640361,-925.38,0.00013698,2]
[339747186,1727934640370,-151.0,0.00013698,2]
[339747187,1727934640380,-500.0,0.00013698,2]
[339747188,1727934640391,-151.0,0.00013698,2]
[339747189,1727934640402,-151.0,0.00013698,2]
[339747190,1727934640412,-500.0,0.00013698,2]
[339747191,1727934640423,-500.0,0.00013698,2]
[339747192,1727934640434,-151.0,0.00013698,2]
[339747193,1727934640444,-546.35,0.00013698,2]
[339747194,1727934640454,-162.578978,0.00013698,2]
[339747195,1727934640463,-500.0,0.00013698,2]
[339747196,1727934640473,-500.0,0.00013698,2]
[339747197,1727934640483,-500.34730898,0.00013698,2]
[339747198,1727934640493,-500.0,0.00013698,2]
[339747199,1727934640503,-500.0,0.00013698,2]
[339747200,1727934640513,-500.0,0.00013698,2]
[339747201,1727934640523,-501.47465994,0.00013698,2]
[339747202,1727934640533,-500.0,0.00013698,2]
[339747203,1727934640545,-500.0,0.00013698,2]
[339747204,1727934640567,-500.0,0.00013698,2]
[339747205,1727934640577,-500.0,0.00013698,2]
[339747206,1727934640587,-500.0,0.00013698,2]
[339747207,1727934640597,-500.0,0.00013698,2]
[339747208,1727934640607,-500.0,0.00013698,2]
[339747209,1727934640618,-500.0,0.00013698,2]
[339747210,1727934640628,-391.5,0.00013698,2]
[339747211,1727934640639,-500.0,0.00013698,2]
[339747212,1727934640649,-500.0,0.00013698,2]
[339747213,1727934640659,-500.0,0.00013698,2]
[339747214,1727934640669,-500.0,0.00013698,2]
[339747215,1727934640679,-570.66494701,0.00013698,2]
[339747216,1727934640689,-500.0,0.00013698,2]
[339747217,1727934640700,-500.0,0.00013698,2]
[339747218,1727934640709,-548.63,0.00013698,2]
[339747219,1727934640719,-500.0,0.00013698,2]
[339747220,1727934640729,-500.0,0.00013698,2]
[339747221,1727934640739,-501.97698082,0.00013698,2]
[339747222,1727934640749,-698.36,0.00013698,2]
[339747223,1727934640759,-500.0,0.00013698,2]
[339747224,1727934640769,-500.0,0.00013698,2]
[339747225,1727934640779,-500.0,0.00013698,2]
[339747226,1727934640788,-760.65,0.00013698,2]
[339747227,1727934640798,-276.75764162,0.00013698,2]
[339747228,1727934640808,-500.67397721,0.00013698,2]
[339747229,1727934640818,-500.0,0.00013698,2]
[339747230,1727934640827,-726.61,0.00013698,2]
[339747231,1727934640837,-514.12516648,0.00013698,2]
[339747232,1727934640846,-277.495156,0.00013698,2]
[339747233,1727934640855,-500.0,0.00013698,2]
[339747234,1727934640865,-151.0,0.00013698,2]
[339747235,1727934640875,-151.0,0.00013698,2]
[339747236,1727934640885,-151.0,0.00013698,2]
[339747237,1727934640894,-151.0,0.00013698,2]
[339747238,1727934640904,-617.82013953,0.00013698,2]
[339747239,1727934640913,-500.0,0.00013698,2]
[339747240,1727934640923,-156.159495,0.00013698,2]
[339747241,1727934640932,-500.0,0.00013698,2]
[339747242,1727934640942,-500.0,0.00013698,2]
[339747243,1727934640951,-151.655317,0.00013698,2]
[339747244,1727934640961,-500.0,0.00013698,2]
[339747245,1727934640971,-528.64,0.00013698,2]
[339747246,1727934640980,-500.0,0.00013698,2]
[339747247,1727934640990,-501.27906212,0.00013698,2]
[339747248,1727934641000,-500.0,0.00013698,2]
[339747249,1727934641009,-500.0,0.00013698,2]
[339747250,1727934641018,-151.0,0.00013698,2]
[339747251,1727934641028,-500.0,0.00013698,2]
[339747252,1727934641037,-151.0,0.00013698,2]
[339747253,1727934641051,-151.0,0.00013698,2]
[339747254,1727934641064,-305.15637186,0.00013698,2]
[339747255,1727934641074,-500.0,0.00013698,2]
[339747256,1727934641085,-776.56,0.00013698,2]
[339747257,1727934641095,-500.0,0.00013698,2]
[339747258,1727934641104,-500.0,0.00013698,2]
[339747259,1727934641113,-500.0,0.00013698,2]
[339747260,1727934641123,-500.0,0.00013698,2]
[339747261,1727934641132,-505.38553148,0.00013698,2]
[339747262,1727934641142,-500.0,0.00013698,2]
[339747263,1727934641151,-500.0,0.00013698,2]
[339747264,1727934641161,-500.0,0.00013698,2]
[339747265,1727934641170,-500.0,0.00013698,2]
[339747266,1727934641180,-500.0,0.00013698,2]
[339747267,1727934641189,-500.0,0.00013698,2]
[339747268,1727934641198,-500.0,0.00013698,2]
[339747269,1727934641208,-239.46117416,0.00013698,2]
[339747270,1727934641219,-500.0,0.00013698,2]
[339747271,1727934641229,-500.65304104,0.00013698,2]
[339747272,1727934641238,-500.0,0.00013698,2]
[339747273,1727934641248,-504.78295645,0.00013698,2]
[339747274,1727934641259,-500.0,0.00013698,2]
[339747275,1727934641268,-500.0,0.00013698,2]
[339747276,1727934641278,-500.0,0.00013698,2]
[339747277,1727934641288,-500.0,0.00013698,2]
[339747278,1727934641298,-500.0,0.00013698,2]
[339747279,1727934641307,-500.0,0.00013698,2]
[339747280,1727934641317,-151.0,0.00013698,2]
[339747281,1727934641327,-500.0,0.00013698,2]
[339747282,1727934641336,-505.64895886,0.00013698,2]
[339747283,1727934641346,-635.46,0.00013698,2]
[339747284,1727934641356,-151.0,0.00013698,2]
[339747285,1727934641366,-151.0,0.00013698,2]
[339747286,1727934641376,-151.0,0.00013698,2]